[Event "Silves Open 2025"]
[Site "Fissul"]
[Date "2025.03.04"]
[Round "6.36"]
[White "Goncalves, Nuno Filipe Pocinho"]
[Black "De Oliveira, Victor Gabriel C."]
[Result "0-1"]
[Annotator "TA"]
[ECO "B20"]
[WhiteElo "1731"]
[BlackElo "2176"]
[PlyCount "75"]
[EventDate "2025.03.03"]
[EventType "swiss"]
[EventCountry "POR"]
[SourceTitle "playchess.com"]
[Source "ChessBase"]
[SourceQuality "1"]
[TimeControl "5400+30"]

{[%evp 9,74,13,43,40,41,25,19,12,30,20,27,21,32,10,25,17,22,22,32,11,49,31,56,56,56,54,72,66,92,92,537,530,528,539,820,810,937,943,1115,993,1018,1014,972,950,1059,1051,1356,1339,1387,1380,1810,1809,2641,2573,29979,29980,29984,29985,29988,29989,29994,29995,29996,29997,29997,29998,29999]} 1. e4 {[%emt 1:31:00]} c5 {[%emt 1:31:00]} 2. a3 {[%emt 0:00:30]} d6 {[%emt 0:00:30]} 3. b4 {[%emt 0:00:30]} b6 {[%emt 0:00:30]} 4. Bb2 {[%emt 0:00:30]} Bb7 {[%emt 0:00:30]} 5. Bb5+ $146 {[%emt 0:00:30]} (5. Nc3 Nf6 6. d3 g6 7. Nf3 Bg7 8. Be2 O-O 9. O-O Nc6 10. bxc5 bxc5 11. Qd2 {0-1 Aalto,P (2226)-Senft,S (2089) Titled Tuesday intern op 02nd May Late blitz 2023 (6)}) 5... Bc6 {[%emt 0:00:30]} 6. Bxc6+ {[%emt 0:00:30] B20: Sicilian: Unusual White 2nd moves.} Nxc6 {[%emt 0:00:30]} 7. b5 {[%emt 0:00:30]} Nd4 {[%emt 0:00:30]} 8. c4 {[%emt 0:00:30] The position is equal.} a6 {[%emt 0:00:30]} 9. a4 {[%emt 0:00:30]} Nf6 {[%emt 0:00:30]} 10. d3 {[%emt 0:00:30]} g6 {[%emt 0:00:30]} 11. Nf3 {[%emt 0:00:30]} Nxf3+ {[%emt 0:00:30]} 12. Qxf3 {[%emt 0:00:30]} Bg7 {[%emt 0:00:30]} 13. O-O {[%emt 0:00:30]} O-O {[%emt 0:00:30]} 14. Rd1 {[%emt 0:00:30]} e5 {[%emt 0:00:30]} 15. h3 {[%emt 0:00:30]} axb5 {[%emt 0:00:30]} 16. axb5 {[%emt 0:00:30]} Rxa1 {[%emt 0:00:30]} 17. Bxa1 {[%emt 0:00:30]} Qa8 {[%emt 0:00:30]} 18. Nc3 {[%emt 0:00:30]} h5 {[%emt 0:00:30]} 19. Bb2 {[%emt 0:00:30]} Qa5 $2 {[%emt 0:00:30][%mdl 8192] [#] Loses the game.} (19... Qc8 $16) 20. Ra1 $18 {[%emt 0:00:30]} Qb4 {[%emt 0:00:30]} 21. Qe2 {[%emt 0:00:30]} Bh6 {[%emt 0:00:30]} 22. Qc2 {[%emt 0:00:30]} Nh7 {[%emt 0:00:30]} 23. Ra4 {[%emt 0:00:30]} Qxa4 {[%emt 0:00:30]} 24. Nxa4 {[%emt 0:00:30]} Rb8 {[%emt 0:00:30]} 25. Bc1 {[%emt 0:00:30]} Bxc1 {[%emt 0:00:30]} 26. Qxc1 {[%emt 0:00:30]} Kg7 {[%emt 0:00:30]} 27. f4 {[%emt 0:00:30]} exf4 {[%emt 0:00:30]} 28. Qxf4 {[%emt 0:00:30]} Ra8 {[%emt 0:00:30]} 29. Nxb6 {[%emt 0:00:30]} Ra1+ {[%emt 0:00:30]} 30. Kh2 {[%emt 0:00:30]} Ra2 {[%emt 0:00:30]} 31. Qxd6 {[%emt 0:00:30]} Ng5 {[%emt 0:00:30]} 32. Qe5+ {[%emt 0:00:30] White mates.} Kh6 {[%emt 0:00:30]} 33. Qf4 {[%emt 0:00:30]} f6 {[%emt 0:00:30][%cal Bf7f6,Bf6g5][%mdl 32]} 34. h4 {[%emt 0:00:30]} Ra3 {[%emt 0:00:30]} 35. hxg5+ {[%emt 0:00:30]} fxg5 {[%emt 0:00:30]} 36. Qf8+ {[%emt 0:00:30]} Kh7 {[%emt 0:00:30]} 37. Nd5 {[%emt 0:00:30][%cal Rd5f6]} Rxd3 {[%emt 0:00:30]} 38. Nf6# {[%emt 0:00:30][%mdl 32768] Weighted Error Value: White=0.04 (flawless) /Black=1.27 Loss on time!?  Loses game:     	---       	Black=1      Inaccurate:     	---       	Black=3      OK:         	White=4     	Black=3      Best:        	White=1     	---} 0-1

[Event "Silves Open 2025"]
[Site "Fissul"]
[Date "2025.03.05"]
[Round "7.2"]
[White "Alshameary Puente, Ismael"]
[Black "Lux, Hugo de Melo"]
[Result "1-0"]
[Annotator "TA"]
[ECO "A17"]
[WhiteElo "2343"]
[BlackElo "2329"]
[PlyCount "97"]
[EventDate "2025.03.03"]
[EventType "swiss"]
[EventCountry "POR"]
[SourceTitle "playchess.com"]
[Source "ChessBase"]
[SourceQuality "1"]
[TimeControl "5400+30"]

{[%evp 9,96,0,15,0,10,0,0,0,22,6,19,-10,28,-6,-23,-37,-33,-34,-33,-23,-37,-25,42,44,41,33,71,20,60,60,76,72,80,65,113,123,108,102,126,126,129,127,150,125,176,0,0,-7,22,-26,279,281,301,295,291,291,691,694,818,0,746,742,723,558,561,554,554,522,566,549,29990,29987,29987,29985,5506,527,517,403,1783,1850,937,457,5265,906,29982,29983,4998,741,29999]} 1. Nf3 {[%emt 0:00:03]} d5 {[%emt 0:03:47]} 2. e3 {[%emt 0:00:11]} Nf6 {[%emt 0:01:26]} 3. c4 {[%emt 0:00:21]} e6 {[%emt 0:07:45]} 4. Nc3 {[%emt 0:00:33]} Nbd7 {[%emt 0:02:02]} 5. b3 {[%emt 0:01:09]} Bd6 {[%emt 0:00:18]} 6. Bb2 {[%emt 0:01:07] A17: English Opening: 1...Nf6 with ...Bb4.} O-O {[%emt 0:00:28]} 7. Qc2 {[%emt 0:00:11]} a6 {[%emt 0:02:11]} 8. Be2 {[%emt 0:02:05] The position is equal.} b6 {[%emt 0:00:57]} 9. cxd5 {[%emt 0:18:09]} exd5 {[%emt 0:00:06][%cal Be6d5,Bd5d4][%mdl 32]} 10. Nd4 {[%emt 0:00:52]} (10. Nxd5 $5 Nxd5 11. Qc6 $14) 10... Ne5 $146 {[%emt 0:27:54] Repels Nc6} (10... c5 11. Nf5 Be5 12. d4 Bc7 13. O-O g6 14. Ng3 cxd4 15. exd4 Re8 16. Bf3 Bb7 {½-½ Gomes,M (2338)-Arpan,D (1991) Kolkata Rapid op 2024 (6)}) 11. f4 {[%emt 0:05:25]} Ng6 {[%emt 0:00:30] Threatening ...c5.} 12. Nf5 {[%emt 0:25:15]} Bxf5 {[%emt 0:12:15]} 13. Qxf5 {[%emt 0:00:07] [#]} d4 {[%emt 0:00:04] and ...Ne7 would now be decisive} 14. Ne4 {[%emt 0:02:46]} Nxe4 {[%emt 0:00:25]} 15. Qxe4 {[%emt 0:00:01] A sharp opening} c5 {[%emt 0:00:45] Black is weak on the light squares} ({Black should try} 15... dxe3 $11 16. dxe3 Bc5 (16... Re8 17. Qd4 $11)) 16. O-O {[%emt 0:05:32]} (16. exd4 $2 Re8 (16... Nxf4 $2 17. O-O $19) 17. Qf3 Nxf4 $19) 16... Re8 {[%emt 0:01:13]} 17. Qd3 {[%emt 0:03:31]} Be7 {[%emt 0:21:43]} 18. Rad1 {[%emt 0:09:00]} (18. exd4 Bf6 $11) ({White should try} 18. a4 $16) 18... Bf6 {[%emt 0:00:30]} 19. e4 {[%emt 0:05:17][%cal Be3e4,Be4e5][%mdl 32]} Ra7 {[%emt 0:06:05]} 20. e5 {[%emt 0:01:16] White has a king side majority} Be7 {[%emt 0:00:37]} 21. Qh3 {[%emt 0:03:46]} Bd6 {[%emt 0:02:05]} 22. Bd3 {[%emt 0:02:45]} Bb8 {[%emt 0:00:02]} 23. Qh5 {[%emt 0:01:11]} Nf8 {[%emt 0:02:08]} 24. Rf3 {[%emt 0:00:38][%cal Od3h7]} g6 {[%emt 0:00:43]} 25. Qh6 {[%emt 0:00:24]} f6 {[%emt 0:00:52]} 26. Rdf1 {[%emt 0:02:36] White has more active pieces.} b5 {[%emt 0:04:32]} (26... fxe5 $16 {was called for.} 27. fxe5 b5) 27. Be4 $2 {[%emt 0:02:45]} (27. exf6 $18 {Threatens to win with f5.} Qxf6 28. f5) 27... f5 $1 $11 {[%emt 0:01:39]} 28. Bd3 $132 {[%emt 0:00:15][%mdl 2048] White puts up resistance} Qd5 {[%emt 0:00:03]} 29. Rg3 {[%emt 0:00:46]} (29. h4 {might be stronger.}) 29... Kh8 $2 {[%emt 0:00:18][%mdl 8192] [#] White leaves nothing to chance now.} (29... Rf7 $1 $11 {and Black is okay.}) 30. Bxf5 $1 $18 {[%emt 0:00:22]} Rf7 {[%emt 0:01:01]} (30... Rg7 31. d3) 31. Bxg6 {[%emt 0:01:51]} Nxg6 {[%emt 0:00:10]} 32. Rxg6 {[%emt 0:00:06][%cal Oe5e6]} Bxe5 {[%emt 0:00:05]} (32... Qe4) 33. Rg5 {[%emt 0:01:25]} (33. fxe5 $2 Rxf1+ 34. Kxf1 Qxe5 $19) 33... Qe4 {[%emt 0:01:45]} 34. Qh5 $2 {[%emt 0:00:27]} (34. Qxa6 $2 Bxf4 35. Qxb5 Ref8 $19 (35... Bxg5 36. Rxf7 Bxd2 37. h3 $11) (35... Be3+ $2 36. dxe3 Qxe3+ 37. Kh1 $19)) (34. fxe5 $18 Rxf1+ 35. Kxf1 Qf4+ 36. Kg1) 34... Ref8 {[%emt 0:00:34][%mdl 8192]} (34... Bxf4 $11 35. Qxf7 (35. Rxc5 Be3+ 36. dxe3 Qxe3+) 35... Bxg5) 35. Rxe5 {[%emt 0:01:19]} Rxf4 {[%emt 0:00:01]} 36. Re1 {[%emt 0:00:29]} Qd3 {[%emt 0:00:59][%cal Od3f1] ( -> ...Qf1+!)} 37. h3 {[%emt 0:02:55]} (37. Rxc5 $2 {gets mated.} Rf1+ 38. Rxf1 Rxf1#) 37... Rf1+ {[%emt 0:00:28] [#]} 38. Kh2 $1 {[%emt 0:00:18]} Rxe1 {[%emt 0:00:32]} 39. Rxe1 {[%emt 0:00:05]} Qxd2 {[%emt 0:00:07]} 40. Qe5+ {[%emt 0:00:05]} Kg8 {[%emt 0:00:04]} 41. Qg3+ {[%emt 0:00:04]} Kh8 {[%emt 0:00:09] [#]} 42. Re7 {[%emt 0:00:10]} Qf4 {[%emt 0:00:39]} 43. Rd7 {[%emt 0:01:58][%cal Ob3b4]} Qf6 {[%emt 0:00:56]} (43... Qxg3+ $142 44. Kxg3 Rg8+ 45. Kh2 Re8) 44. Bc1 {[%emt 0:01:23]} Rg8 {[%emt 0:00:06] Wards off Bg5} 45. Qf4 {[%emt 0:00:36]} (45. Qc7 $142 {[%csl Gc7][%cal Rd7h7]} Rg7 46. Qc8+ Rg8 47. Qxc5) 45... Qe6 {[%emt 0:00:27]} (45... Qxf4+ $142 46. Bxf4 Re8) 46. Rf7 {[%emt 0:00:35]} (46. Qc7 $142 Qf5 47. Re7) 46... Rg6 {[%emt 0:00:25]} 47. Qb8+ {[%emt 0:00:59]} Rg8 {[%emt 0:00:01]} 48. Rf8 {[%emt 0:00:26]} (48. Qc7 $142 Rxg2+ 49. Kxg2 Qg6+ 50. Kf3) 48... Qe5+ {[%emt 0:01:00]} 49. Qxe5# {[%emt 0:00:38] Weighted Error Value: White=0.39/Black=0.73  Loses game:     	---       	Black=1      Missed win:     	White=1     	---        Mistake:       	White=2     	Black=5      Inaccurate:     	White=2     	Black=6      OK:         	White=8     	Black=11     Best:        	White=1     	---        Strong:       	White=1     	Black=1      Brilliant:      	White=1     	Black=1} 1-0

[Event "Silves Open 2025"]
[Site "Fissul"]
[Date "2025.03.05"]
[Round "7.4"]
[White "Khamrakulov, Ibragim S."]
[Black "Sanz Wawer, Daniel"]
[Result "1/2-1/2"]
[Annotator "TA"]
[ECO "B13"]
[WhiteElo "2384"]
[BlackElo "2283"]
[PlyCount "59"]
[EventDate "2025.03.03"]
[EventType "swiss"]
[EventCountry "POR"]
[SourceTitle "playchess.com"]
[Source "ChessBase"]
[SourceQuality "1"]
[TimeControl "5400+30"]

{[%evp 13,59,-5,10,-11,1,21,70,63,64,46,84,80,83,87,86,85,99,89,106,49,56,9,3,0,0,0,0,0,0,0,0,0,0,0,0,0,0,0,0,0,0,0,0,0,0,-37,13,7]} 1. e4 {[%emt 0:04:47]} c6 {[%emt 0:00:05][%cal Bc7c6,Bc6d5,Bd5c4][%mdl 32]} 2. d4 {[%emt 0:04:17]} d5 {[%emt 0:00:05]} 3. exd5 {[%emt 0:00:19]} cxd5 {[%emt 0:00:06]} 4. c4 {[%emt 0:00:09]} Nf6 {[%emt 0:00:04]} 5. Nc3 {[%emt 0:00:28]} Nc6 {[%emt 0:00:07]} 6. Bg5 {[%emt 0:00:08]} dxc4 {[%emt 0:03:47]} 7. d5 {[%emt 0:07:52]} Ne5 {[%emt 0:00:09]} 8. Nf3 {[%emt 0:00:04] B13: Caro-Kann: Exchange Variation and Panov-Botvinnik Attack.} Nxf3+ {[%emt 0:14:36]} (8... Bg4 $5) 9. Qxf3 {[%emt 0:02:04]} Bg4 $146 {[%emt 0:05:55]} (9... h6 $11 10. Be3 Bg4) (9... h6 10. Bxf6 exf6 11. Bxc4 Bd6 12. Bb5+ Bd7 13. O-O O-O 14. Rfe1 Rc8 15. Rac1 Be5 16. Bxd7 Qxd7 {½-½ Viskelis,D (1923)-Ser,D (2111) Taujenai-ch rapid 2023 (3)}) 10. Qf4 $14 {[%emt 0:04:34] [#] White is slightly better. White is more active.} Qd6 {[%emt 0:20:29]} 11. Bxc4 {[%emt 0:01:02]} Qxf4 {[%emt 0:02:45]} 12. Bxf4 {[%emt 0:00:08]} Rc8 {[%emt 0:00:55]} 13. Bb3 {[%emt 0:02:09]} Nd7 {[%emt 0:07:51]} 14. O-O {[%emt 0:04:23]} Nc5 {[%emt 0:10:29]} 15. Bc4 {[%emt 0:02:25]} Nd7 {[%emt 0:04:16] [#]} 16. b3 {[%emt 0:15:42]} ({White should play} 16. Bd3 $1 $16) 16... g5 {[%emt 0:04:36]} 17. Bxg5 {[%emt 0:23:50]} (17. Be3 $14) 17... Rg8 $1 $36 {[%emt 0:00:03][%mdl 2048] Black fights for an advantage.} 18. Bh4 {[%emt 0:05:50]} Bg7 {[%emt 0:01:07]} 19. Rac1 {[%emt 0:02:00][%cal Ba1c1,Bc1c3,Bc3f3][%mdl 32]} Bxc3 {[%emt 0:03:47]} 20. Rxc3 {[%emt 0:00:02]} b5 {[%emt 0:00:20]} 21. h3 {[%emt 0:04:03][%cal Of1e1]} Bf5 {[%emt 0:05:56]} 22. Re1 {[%emt 0:01:35][%cal Oc3f3] Strongly threatening Rf3!.} bxc4 {[%emt 0:04:47]} 23. Rf3 {[%emt 0:01:22]} Bg6 {[%emt 0:02:32][%cal Of7f6] Threatens to win with ...f6!.} 24. Rxe7+ {[%emt 0:01:30]} Kd8 {[%emt 0:00:58][%cal Of7f6]} 25. Rexf7+ {[%emt 0:04:39]} Kc7 {[%emt 0:00:08]} 26. Bg3+ {[%emt 0:01:41]} Kd8 {[%emt 0:00:47]} 27. Bh4+ {[%emt 0:03:03]} Kc7 {[%emt 0:00:01]} 28. Bg3+ {[%emt 0:00:08]} Kd8 {[%emt 0:00:10]} 29. R7f4 {[%emt 0:04:46]} Ne5 {[%emt 0:08:09]} ({Black should play} 29... cxb3 $15 30. Rxb3 Nb6) 30. Rc3 {[%emt 0:00:30] Weighted Error Value: White=0.11 (very precise) /Black=0.11 (very precise)   Mistake:       	White=2     	Black=2      Inaccurate:     	White=1     	Black=1      OK:         	White=11    	Black=6      Best:        	White=2     	Black=8      Strong:       	---       	Black=1} 1/2-1/2

[Event "Silves Open 2025"]
[Site "Fissul"]
[Date "2025.03.05"]
[Round "7.5"]
[White "Martins, Bruno Andre Leite"]
[Black "Vasques, Antonio Pedro Freixi"]
[Result "1-0"]
[Annotator "TA"]
[ECO "C77"]
[WhiteElo "2360"]
[BlackElo "2246"]
[PlyCount "119"]
[EventDate "2025.03.03"]
[EventType "swiss"]
[EventCountry "POR"]
[SourceTitle "playchess.com"]
[Source "ChessBase"]
[SourceQuality "1"]
[TimeControl "5400+30"]

{[%evp 11,119,13,15,8,22,6,14,8,15,8,18,21,28,8,9,0,0,0,0,-7,0,-7,-10,-14,-9,-14,11,0,0,-16,-16,-19,-11,-6,-8,-8,-5,-7,-4,0,20,-6,0,0,20,0,18,0,0,0,0,0,0,0,0,-4,-4,-5,-4,-4,-4,-4,-4,-4,0,-11,-18,-19,0,0,0,0,34,26,67,34,51,21,51,38,62,49,51,14,185,182,218,228,224,201,264,235,360,355,415,397,594,523,29982,29984,29984,29985,29985,29986,29986,29986,29986,29987,29988,29983]} 1. e4 {[%emt 0:04:20]} e5 {[%emt 0:00:06]} 2. Nf3 {[%emt 0:00:37]} Nc6 {[%emt 0:00:04]} 3. Bb5 {[%emt 0:00:10]} a6 {[%emt 0:00:05]} 4. Ba4 {[%emt 0:00:04]} Nf6 {[%emt 0:00:09]} 5. Bxc6 {[%emt 0:07:20]} dxc6 {[%emt 0:00:27]} 6. d3 {[%emt 0:00:08]} Bd6 {[%emt 0:02:37]} 7. O-O {[%emt 0:01:06] C77: Ruy Lopez: 3...a6 4 Ba4 Nf6, unusual lines.} Nd7 {[%emt 0:01:06]} 8. Nbd2 {[%emt 0:01:18]} O-O {[%emt 0:00:29]} 9. Nc4 {[%emt 0:00:37] The position is equal.} Qe7 {[%emt 0:01:28]} 10. b3 {[%emt 0:06:35]} a5 {[%emt 0:06:05]} 11. a4 {[%emt 0:00:24]} b6 $146 {[%emt 0:00:15]} (11... Re8 12. Bb2 Nf8 13. Ncxe5 f6 14. Nc4 Bg4 15. Ne3 Bh5 16. h3 Ne6 17. Nf5 Qd7 {1-0 Pranav,V (2588)-Omorjan,D (2293) Titled Tuesday intern op 01st Aug Early blitz 2023 (2)}) 12. Re1 {[%emt 0:03:36]} Bb4 {[%emt 0:07:33]} 13. Bg5 {[%emt 0:07:08]} f6 {[%emt 0:00:57]} 14. Bd2 {[%emt 0:00:07]} Bxd2 {[%emt 0:00:27]} 15. Qxd2 {[%emt 0:00:08]} Rd8 {[%emt 0:03:40]} 16. Ne3 {[%emt 0:06:52]} Nc5 {[%emt 0:04:55][%cal Bd7c5,Bc5e6,Be6f4][%mdl 32]} 17. Qc3 {[%emt 0:00:38]} Qd7 {[%emt 0:21:02]} 18. Nf5 {[%emt 0:18:27]} Qf7 {[%emt 0:00:41]} 19. Ng3 {[%emt 0:19:25]} Qd7 {[%emt 0:06:37]} 20. h3 {[%emt 0:01:29]} Ne6 {[%emt 0:01:52]} 21. Nf5 {[%emt 0:00:12]} g6 {[%emt 0:04:09]} 22. Nh6+ {[%emt 0:00:35] A dynamic duo of knights.} Kg7 {[%emt 0:00:29]} 23. Ng4 {[%emt 0:00:25][%cal Of3e5]} Qd6 {[%emt 0:02:25]} 24. Qd2 {[%emt 0:04:32]} Nf4 {[%emt 0:08:41]} 25. Ne3 {[%emt 0:02:38][%cal Od3d4]} h5 {[%emt 0:00:24]} 26. Kh2 {[%emt 0:02:56]} (26. d4 $5) 26... Be6 {[%emt 0:05:12]} 27. Ng1 {[%emt 0:01:02]} Qd7 {[%emt 0:01:23]} 28. h4 {[%emt 0:02:43]} Bf7 {[%emt 0:00:24]} (28... Nxd3 $5 29. Qxd3 (29. cxd3 Qxd3 30. Qxd3 Rxd3 $16) 29... Qxd3 30. cxd3 Rxd3 $14) 29. g3 {[%emt 0:00:23]} Ne6 {[%emt 0:00:04]} 30. Ne2 {[%emt 0:00:41]} c5 {[%emt 0:02:09]} 31. Rf1 {[%emt 0:01:34]} Nd4 {[%emt 0:00:28]} 32. Nxd4 {[%emt 0:01:20]} cxd4 {[%emt 0:00:28]} 33. Ng2 {[%emt 0:00:19]} Be6 {[%emt 0:00:08]} 34. f4 {[%emt 0:00:09] and fxe5 should not be overlooked} Qe7 {[%emt 0:03:06]} 35. Rf2 {[%emt 0:00:31]} Bg4 {[%emt 0:00:39]} 36. Raf1 {[%emt 0:00:19]} Rf8 {[%emt 0:00:09]} 37. Ne1 {[%emt 0:00:29]} exf4 {[%emt 0:01:01]} 38. Qxf4 {[%emt 0:01:02]} Qe5 {[%emt 0:00:21]} 39. Nf3 {[%emt 0:01:20]} Bxf3 {[%emt 0:02:14]} 40. Rxf3 {[%emt 0:00:10]} Rae8 {[%emt 0:00:22][%cal Ba8e8,Be8e6,Be6c6][%mdl 32]} 41. Kg2 {[%emt 0:00:11]} Qxf4 {[%emt 0:01:17]} 42. gxf4 $11 {[%emt 0:00:36][%mdl 4096] Endgame KRR-KRR} f5 {[%emt 0:00:26]} 43. Re1 {[%emt 0:01:11]} Re6 {[%emt 0:00:13]} 44. Rf2 {[%emt 0:00:49]} Rfe8 {[%emt 0:00:31][%cal Rf5e4]} 45. Rfe2 {[%emt 0:00:13]} Kf6 {[%emt 0:00:20]} 46. Kf3 {[%emt 0:00:21]} R8e7 {[%emt 0:00:17]} 47. Rg1 {[%emt 0:00:32]} fxe4+ $2 {[%emt 0:01:27] This costs Black the game.} (47... Rc6 $11) 48. dxe4 $18 {[%emt 0:00:51][%cal Bd3e4,Be4e5][%mdl 32]} Rc6 {[%emt 0:00:07]} 49. e5+ {[%emt 0:00:34]} Kf7 {[%emt 0:00:10] [#]} 50. Rd1 $1 {[%emt 0:02:01]} Rc3+ {[%emt 0:01:12] [#]} 51. Rd3 $1 {[%emt 0:00:07]} Rxd3+ {[%emt 0:00:08]} (51... Rc5 $142 52. Ke4 (52. Rxd4 Rc3+ 53. Rd3 Rxd3+ 54. cxd3 c5 $18) 52... Rc6 53. Rxd4 (53. Kxd4 Rd7+ 54. Ke4 Rxd3 $18) 53... Rc3) 52. cxd3 {[%emt 0:00:04] KR-KR} Ke6 {[%emt 0:00:13]} 53. Ke4 {[%emt 0:00:17]} c5 {[%emt 0:00:06]} (53... c6 $142 54. Rg2 (54. Kxd4 c5+ 55. Ke3 Kd5 $18) 54... Rg7 55. Kxd4 Rg8) 54. Rg2 {[%emt 0:00:04]} Rg7 {[%emt 0:00:04] [#]} 55. Rxg6+ $3 {[%emt 0:00:50][%mdl 512] White mates.} Rxg6 {[%emt 0:00:05]} 56. f5+ {[%emt 0:00:05]} Kf7 {[%emt 0:00:02]} 57. fxg6+ {[%emt 0:00:07]} Kxg6 {[%emt 0:00:04]} 58. Kd5 {[%emt 0:00:06]} Kf7 {[%emt 0:04:27]} 59. Kd6 {[%emt 0:00:10]} b5 {[%emt 0:01:19]} 60. Kxc5 {[%emt 0:00:16] Weighted Error Value: White=0.05 (flawless) /Black=0.30  Loses game:     	---       	Black=1      Mistake:       	---       	Black=2      Inaccurate:     	White=4     	Black=5      OK:         	White=16    	Black=17     Best:        	White=1     	---        Strong:       	White=2     	---        Brilliant:      	White=1     	---} 1-0